[Event "10th Floripa Open 2024"]
[Site "Florianopolis"]
[Date "2024.01.28"]
[Round "9.4"]
[White "Flores Quillas, Diego Saul Rodri"]
[Black "Hoffman, Alejandro"]
[Result "1/2-1/2"]
[ECO "C41"]
[WhiteElo "2429"]
[BlackElo "2358"]
[Annotator "TA"]
[PlyCount "84"]
[EventDate "2024.01.10"]
[EventType "swiss"]
[EventCountry "BRA"]
[SourceTitle "playchess.com"]
[Source "ChessBase"]
[SourceQuality "1"]
[TimeControl "5400+30"]

{[%evp 10,84,29,24,35,23,17,18,21,24,34,24,31,21,21,15,14,20,12,0,25,-7,12,15,13,0,0,0,0,0,6,-14,0,-15,-2,-35,0,-2,0,-10,0,0,0,0,0,0,0,-51,-41,-89,-98,-220,-218,-245,-155,-118,-138,-143,-157,-137,-100,-328,-313,-264,-71,-89,-57,-62,-59,-77,-23,-25,-8,-8,-3,-32,-7]} 1. e4 {[%emt 0:08:22]} d6 {[%emt 0:00:15]} 2. d4 {[%emt 0:00:04]} Nf6 {[%emt 0:00:14]} 3. Nc3 {[%emt 0:00:03]} e5 {[%emt 0:00:17]} 4. Nf3 {[%emt 0:00:09]} Nbd7 {[%emt 0:00:43]} 5. Bc4 {[%emt 0:00:08]} Be7 {[%emt 0:00:19]} 6. O-O {[%emt 0:00:17][%cal Oc4f7] [#] And now Bxf7+! would win.} Nb6 {[%emt 0:00:39]} 7. Bb3 {[%emt 0:00:53]} exd4 {[%emt 0:00:28]} 8. Qxd4 {[%emt 0:02:18]} O-O {[%emt 0:00:18] The position is equal.} 9. a4 {[%emt 0:04:31]} a5 {[%emt 0:03:16]} 10. Bg5 {[%emt 0:03:07]} h6 {[%emt 0:03:48]} 11. Bh4 {[%emt 0:04:28]} Nfd7 {[%emt 0:02:29]} 12. Bxe7 {[%emt 0:00:08]} Qxe7 {[%emt 0:00:06]} 13. Rfe1 {[%emt 0:02:22]} Nc5 {[%emt 0:06:57]} 14. Bd5 {[%emt 0:00:21]} c6 {[%emt 0:12:23]} 15. Bb3 {[%emt 0:04:58]} Bg4 {[%emt 0:07:59]} 16. Nd2 {[%emt 0:00:06]} Be6 {[%emt 0:04:45]} 17. Bc4 {[%emt 0:07:39]} Bxc4 {[%emt 0:01:42]} 18. Nxc4 {[%emt 0:00:05]} Nxc4 {[%emt 0:00:05]} 19. Qxc4 {[%emt 0:00:04]} Rfe8 {[%emt 0:01:06][%cal Od6d5]} 20. h3 {[%emt 0:00:46]} Qc7 {[%emt 0:01:43]} 21. Rad1 {[%emt 0:01:47]} Re6 {[%emt 0:00:35]} 22. Rd4 {[%emt 0:36:04]} Qb6 {[%emt 0:04:36] [#] aiming for ...d5.} 23. Rb1 {[%emt 0:00:51]} Rae8 {[%emt 0:00:37]} 24. b3 {[%emt 0:00:37]} Qc7 {[%emt 0:12:10]} 25. Rbd1 {[%emt 0:00:45]} Qe7 {[%emt 0:00:55][%cal Og8h8]} 26. f3 {[%emt 0:01:42]} Rg6 {[%emt 0:01:02]} 27. R4d2 {[%emt 0:02:43]} Qg5 {[%emt 0:11:35]} 28. Kh1 {[%emt 0:16:42]} ({White should try} 28. Rf2 $11) 28... Ne6 $15 {[%emt 0:23:28]} 29. Qf1 {[%emt 0:01:00]} (29. Rf2 $15) 29... Nf4 $17 {[%emt 0:00:00]} 30. Qg1 {[%emt 0:01:29]} (30. Rf2 $17) 30... Qf6 {[%emt 0:00:00]} 31. Qh2 {[%emt 0:00:54]} Rxg2 {[%emt 0:00:00]} 32. Rxg2 {[%emt 0:00:09]} Nxg2 {[%emt 0:00:00]} 33. Qxg2 {[%emt 0:00:47]} Qxc3 {[%emt 0:00:00]} 34. Rxd6 $19 {[%emt 0:00:03][%cal Og2f2][%mdl 4096] Endgame. KQR-KQR} Re5 {[%emt 0:00:00]} 35. Rxh6 $2 {[%emt 0:00:55]} (35. Rd3 $17 Qb2 36. Qf2) 35... Qe3 {[%emt 0:00:34]} 36. Rd6 {[%emt 0:00:19]} Qc1+ $2 {[%emt 0:01:18]} (36... Rg5 $19 {and Black stays clearly on top. Threatens to win with ...Qc1+.} 37. Qf1 Rg3) 37. Qg1 $17 {[%emt 0:00:51]} ({Don't go for} 37. Kh2 $2 Rg5 38. Rd8+ Kh7 $19) 37... Qxc2 {[%emt 0:00:24][%cal Oe5h5]} 38. Rd8+ {[%emt 0:00:01]} Kh7 {[%emt 0:00:08][%cal Oe5h5]} 39. Qe3 $1 {[%emt 0:00:54]} f6 {[%emt 0:01:00]} (39... Rh5 40. Rd2 Qc1+ (40... Rxh3+ $2 {perishes.} 41. Kg2 $18) 41. Kh2) (39... Rc5 $17 {Black wants to play ...Qb1+.} 40. e5 b6) 40. Rd2 $11 {[%emt 0:00:31]} Qc1+ {[%emt 0:00:45]} 41. Kh2 {[%emt 0:00:01]} Rc5 {[%emt 0:00:24] ...Rc2 is the strong threat.} 42. Re2 {[%emt 0:00:23]} Qxe3 {[%emt 0:01:32] Whites escaped into a draw.   Weighted Error Value: White=0.20 (precise) /Black=0.19 (very precise) .  Loses game:     	White=1     	---        Missed win:     	---       	Black=1      Mistake:       	White=3     	Black=1      Inaccurate:     	White=3     	Black=2      OK:         	White=10    	Black=9      Best:        	White=4     	Black=5      Strong:       	White=1     	---} 1/2-1/2

[Event "10th Floripa Open 2024"]
[Site "Florianopolis"]
[Date "2024.01.28"]
[Round "9.5"]
[White "Haldorsen, Benjamin"]
[Black "Ticona Rocabado, Licael Roderick"]
[Result "1/2-1/2"]
[ECO "C50"]
[WhiteElo "2427"]
[BlackElo "2350"]
[Annotator "TA"]
[PlyCount "145"]
[EventDate "2024.01.10"]
[EventType "swiss"]
[EventCountry "BRA"]
[SourceTitle "playchess.com"]
[Source "ChessBase"]
[SourceQuality "1"]
[TimeControl "5400+30"]

{[%evp 42,145,67,60,60,60,60,33,61,64,84,86,80,89,102,102,117,117,119,111,114,95,188,189,194,193,187,186,209,101,184,62,180,187,197,197,202,102,215,212,204,206,222,116,184,188,166,92,100,0,0,0,0,0,0,0,0,0,0,0,0,0,0,0,0,0,0,0,0,0,0,0,0,0,0,0,0,0,0,0,0,0,0,0,0,0,0,0,0,0,0,0,0,0,0,0,0,0,0,0,0,0,0,0,0,0]} 1. e4 {[%emt 0:01:07]} e5 {[%emt 0:00:08]} 2. Nf3 {[%emt 0:00:36]} Nc6 {[%emt 0:00:07]} 3. Bc4 {[%emt 0:00:31]} Bc5 {[%emt 0:00:07]} 4. Nc3 {[%emt 0:01:01]} Nf6 {[%emt 0:00:16]} 5. d3 {[%emt 0:00:10]} h6 {[%emt 0:00:53]} 6. h3 {[%emt 0:01:57]} d6 {[%emt 0:00:18]} 7. Na4 {[%emt 0:00:51]} Bb6 {[%emt 0:01:44]} 8. a3 {[%emt 0:02:24]} Be6 {[%emt 0:01:21]} 9. Bxe6 {[%emt 0:00:14]} fxe6 {[%emt 0:00:02]} 10. b4 {[%emt 0:01:14]} O-O {[%emt 0:01:43]} 11. O-O {[%emt 0:00:11]} Qe8 {[%emt 0:02:25]} 12. c3 {[%emt 0:11:26]} g5 {[%emt 0:02:31]} 13. Nxb6 {[%emt 0:05:33]} axb6 {[%emt 0:00:08]} 14. b5 {[%emt 0:00:36]} Ne7 {[%emt 0:00:36]} 15. a4 {[%emt 0:00:11]} Ng6 {[%emt 0:01:29]} 16. g3 {[%emt 0:00:50]} Qf7 {[%emt 0:01:06]} 17. Nh2 {[%emt 0:02:58]} Kh7 {[%emt 0:03:24]} 18. c4 {[%emt 0:05:26]} Nd7 {[%emt 0:01:58]} 19. Ra2 {[%emt 0:07:08]} Nc5 {[%emt 0:06:30]} 20. Be3 {[%emt 0:00:57]} Rad8 {[%emt 0:04:07]} 21. Bxc5 {[%emt 0:08:06]} dxc5 {[%emt 0:00:06]} 22. Qe2 {[%emt 0:00:16]} Ra8 {[%emt 0:01:47]} 23. Rfa1 {[%emt 0:00:39]} Ra5 {[%emt 0:04:33]} 24. Nf1 {[%emt 0:04:26]} Rfa8 {[%emt 0:11:12]} 25. Nd2 {[%emt 0:02:23]} Qd7 {[%emt 0:00:27]} 26. Nb3 {[%emt 0:02:15]} R5a7 {[%emt 0:00:01]} 27. a5 {[%emt 0:16:44]} Qd6 {[%emt 0:00:51]} 28. axb6 {[%emt 0:06:42]} Rxa2 {[%emt 0:01:00]} 29. Rxa2 {[%emt 0:00:05]} Rxa2 {[%emt 0:00:05]} 30. Qxa2 {[%emt 0:00:34]} cxb6 {[%emt 0:00:02]} 31. Nc1 {[%emt 0:00:49]} Ne7 {[%emt 0:00:53]} (31... Qd4 $16 {was necessary.}) 32. Qa8 $18 {[%emt 0:01:04]} Qd7 {[%emt 0:04:33]} 33. Qb8 {[%emt 0:01:01]} Ng6 {[%emt 0:00:09]} 34. Kf1 {[%emt 0:00:31]} h5 {[%emt 0:00:15]} 35. Qa7 {[%emt 0:03:27]} (35. Ke2 $1 $18 {is more deadly.}) 35... Qc7 {[%emt 0:03:10]} (35... Qd8 $16 {was called for.}) 36. Ne2 {[%emt 0:00:58]} (36. Qa8 $18) 36... Kh6 {[%emt 0:00:30]} (36... Qd8 $14) 37. Ng1 $18 {[%emt 0:02:02]} g4 {[%emt 0:12:25]} 38. hxg4 {[%emt 0:00:59]} hxg4 {[%emt 0:00:11]} 39. Qa3 {[%emt 0:03:07]} (39. Qa2 $18) 39... Nf8 {[%emt 0:02:48]} (39... Qd8 $16 {might work better.}) 40. Qc1+ $18 {[%emt 0:00:27]} Kg6 {[%emt 0:00:01]} 41. Qd1 $1 {[%emt 0:00:39]} Kh5 {[%emt 0:00:24]} 42. f3 {[%emt 0:02:28]} (42. Nf3 $1 $18) 42... Nh7 $16 {[%emt 0:02:17]} 43. fxg4+ {[%emt 0:01:00]} Kg6 {[%emt 0:00:01] [#]} 44. Kg2 {[%emt 0:01:27]} ({White should play} 44. Qd2 $1 $18) 44... Ng5 $16 {[%emt 0:00:57] [#]} 45. Nf3 {[%emt 0:01:28]} (45. Ne2 $1 $16) 45... Nxf3 $1 $11 {[%emt 0:00:06]} 46. Qxf3 {[%emt 0:00:04]} Qd8 {[%emt 0:00:06]} 47. Qf1 {[%emt 0:01:27]} Kg7 {[%emt 0:01:54]} 48. Qa1 {[%emt 0:00:32]} Qg5 {[%emt 0:00:01]} 49. Qb2 {[%emt 0:01:03]} Kg6 {[%emt 0:01:06]} 50. Qe2 {[%emt 0:00:29]} Qc1 {[%emt 0:00:35]} 51. Qf2 {[%emt 0:00:55]} Qh6 {[%emt 0:02:38]} 52. Qb2 {[%emt 0:01:45]} Qe3 {[%emt 0:00:32]} 53. Qc2 {[%emt 0:00:53]} (53. Qxe5 $5 Qe2+ $8 54. Kg1 Qe3+ 55. Kh2 Qf2+ 56. Kh3 Qf1+ 57. Kh2 Qe2+ (57... Qf2+ 58. Kh3 $11) 58. Kh3 (58. Kg1 Qe3+ 59. Kg2 Qe2+ 60. Kh3 Qf1+ 61. Kh2 Qe2+ 62. Kg1 $11) 58... Qf1+ 59. Kh2 Qe2+ (59... Qf2+ 60. Kh1 $11) 60. Kg1 Qe1+ 61. Kh2 Qf2+ 62. Kh3 Qf1+ $11) 53... Kg5 {[%emt 0:01:22]} 54. Qd1 {[%emt 0:00:20]} Kg6 {[%emt 0:00:10]} 55. g5 {[%emt 0:00:29]} Qxg5 {[%emt 0:02:05]} 56. Qe2 {[%emt 0:00:16]} Qc1 {[%emt 0:00:45]} 57. Qg4+ {[%emt 0:00:09]} Kf6 {[%emt 0:00:08]} 58. Qh4+ {[%emt 0:00:35]} Kg6 {[%emt 0:01:02]} 59. Qg4+ {[%emt 0:01:01]} (59. Qe7 $5 Qd2+ $8 60. Kh3 Qh6+ 61. Qh4 $11) 59... Kf6 {[%emt 0:00:16]} 60. Qh4+ {[%emt 0:00:10]} Kg6 {[%emt 0:00:11]} 61. Qe7 {[%emt 0:00:29]} Qd2+ {[%emt 0:00:06]} 62. Kh3 {[%emt 0:00:07]} Qh6+ {[%emt 0:00:05]} 63. Qh4 {[%emt 0:00:42]} (63. Kg2 $5 Qd2+ $8 64. Kh3 Qh6+ 65. Qh4 $11) 63... Qd2 {[%emt 0:01:11]} 64. Qg4+ {[%emt 0:00:58]} Kf6 {[%emt 0:00:22]} 65. Qh4+ {[%emt 0:00:52]} Kg6 {[%emt 0:00:07]} 66. Qg4+ {[%emt 0:00:35]} Kf6 {[%emt 0:00:36]} 67. Qg8 {[%emt 0:00:33]} Qxd3 {[%emt 0:00:34]} 68. Qf8+ {[%emt 0:00:14]} Kg6 {[%emt 0:00:02]} 69. Qg8+ {[%emt 0:00:45]} Kf6 {[%emt 0:00:07]} 70. Qf8+ {[%emt 0:00:24]} Kg6 {[%emt 0:00:07]} 71. Qe8+ {[%emt 0:00:23]} Kf6 {[%emt 0:00:11]} 72. Qh8+ {[%emt 0:00:26]} Kg6 {[%emt 0:00:12]} 73. Qg8+ {[%emt 0:00:52]} 1/2-1/2

[Event "10th Floripa Open 2024"]
[Site "Florianopolis"]
[Date "2024.01.28"]
[Round "9.6"]
[White "Do Valle Cardoso, Lucas"]
[Black "Labussiere, Yago"]
[Result "1-0"]
[ECO "B30"]
[WhiteElo "2392"]
[BlackElo "2167"]
[Annotator "TA"]
[PlyCount "95"]
[EventDate "2024.01.10"]
[EventType "swiss"]
[EventCountry "BRA"]
[SourceTitle "playchess.com"]
[Source "ChessBase"]
[SourceQuality "1"]
[TimeControl "5400+30"]

{[%evp 11,95,24,30,29,38,12,10,14,8,8,9,20,11,9,13,5,48,27,58,49,56,53,67,68,157,152,154,157,149,105,101,105,104,102,108,95,95,95,94,74,97,8,8,18,3,3,2,3,4,4,8,6,16,10,60,70,78,13,21,16,35,35,47,47,47,47,47,47,89,89,83,83,83,83,196,196,426,426,425,405,588,508,3183,1993,1527,1484]} 1. e4 {[%emt 0:00:03]} c5 {[%emt 0:00:26]} 2. Nf3 {[%emt 0:00:05]} Nc6 {[%emt 0:00:07]} 3. Nc3 {[%emt 0:00:04]} Nf6 {[%emt 0:00:40]} 4. Bb5 {[%emt 0:00:03]} Qc7 {[%emt 0:00:18]} 5. O-O {[%emt 0:00:22]} Nd4 {[%emt 0:00:27]} 6. Re1 {[%emt 0:01:48]} a6 {[%emt 0:00:14]} 7. Bf1 {[%emt 0:01:20]} e5 {[%emt 0:01:03]} 8. h3 {[%emt 0:16:47]} Be7 {[%emt 0:03:16]} 9. a4 {[%emt 0:05:58] The position is equal.} d6 {[%emt 0:06:56]} 10. Bc4 {[%emt 0:00:56]} O-O {[%emt 0:08:38]} 11. d3 {[%emt 0:00:22]} h6 {[%emt 0:01:09]} 12. Nd2 {[%emt 0:01:11][%cal Bf3d2,Bd2f1,Bf1e3][%mdl 32]} Be6 {[%emt 0:16:52]} 13. Nf1 {[%emt 0:00:28]} Nc6 {[%emt 0:10:36]} 14. Ne3 {[%emt 0:01:11]} Nb4 {[%emt 0:00:04]} 15. Bd2 {[%emt 0:06:54]} Qd7 {[%emt 0:08:33]} 16. Qf3 {[%emt 0:10:57]} Rad8 {[%emt 0:01:44]} 17. a5 {[%emt 0:00:49]} d5 {[%emt 0:14:40]} (17... Qc7 $14) 18. exd5 $16 {[%emt 0:00:12]} Nfxd5 {[%emt 0:00:31]} 19. Nexd5 {[%emt 0:01:25]} Nxd5 {[%emt 0:00:19]} 20. Bxd5 {[%emt 0:05:55]} Bxd5 {[%emt 0:00:06]} 21. Qg3 {[%emt 0:08:20]} Qc6 {[%emt 0:02:37]} 22. Rxe5 {[%emt 0:06:02] White is more active.} (22. Qxe5 Bf6 23. Nxd5 Rxd5 $14) 22... Bf6 {[%emt 0:02:39]} 23. Rxd5 {[%emt 0:04:05]} (23. Rh5 {is interesting.} Bxc3 24. Bxc3 Qg6 25. b3) 23... Rxd5 {[%emt 0:00:12]} 24. Nxd5 {[%emt 0:00:05]} Qxd5 {[%emt 0:00:02]} 25. Bxh6 {[%emt 0:01:06]} (25. Qf3 {simplifies} Qxf3 26. gxf3 Rb8 27. Rb1) 25... Re8 {[%emt 0:01:47]} 26. Ra4 {[%emt 0:02:45]} ({Better is} 26. Be3 $16) 26... Qh5 $1 $11 {[%emt 0:04:07]} (26... Re1+ 27. Kh2 Re2 28. Rc4 $18 (28. Rg4 Qe5 $16)) 27. Be3 {[%emt 0:06:05] Threatens to win with Rg4.} Qd1+ {[%emt 0:00:22]} 28. Kh2 {[%emt 0:00:02] And now Rg4 would win.} Qxc2 {[%emt 0:00:31]} 29. Rc4 {[%emt 0:00:39][%cal Ba4c4,Bc4c5,Bc5d5,Bd5d8][%mdl 32]} Qxd3 {[%emt 0:00:33]} 30. Rxc5 {[%emt 0:00:09]} (30. Bxc5 $2 {perishes.} Qxc4 31. Bd6 Qd4 $19 (31... Bxb2 $2 32. Qf3 $19)) 30... Bxb2 {[%emt 0:00:29]} 31. Qf3 {[%emt 0:00:38]} Qd7 {[%emt 0:04:46][%cal Oe8e3]} 32. g3 {[%emt 0:00:10]} Rc8 {[%emt 0:04:06]} (32... Rd8 $11) 33. Rd5 $14 {[%emt 0:01:44]} Qe6 {[%emt 0:02:55]} 34. Kg2 {[%emt 0:00:11]} (34. Rd3 $1 $16) 34... Bc3 {[%emt 0:01:37]} 35. h4 {[%emt 0:01:53]} Re8 {[%emt 0:00:51]} 36. Bb6 {[%emt 0:01:43][%cal Od5d3]} Qe4 {[%emt 0:02:49]} 37. Qxe4 {[%emt 0:01:29]} Rxe4 {[%emt 0:00:02][%mdl 4096] Endgame. KRB-KRB} 38. Rd8+ {[%emt 0:00:43]} Kh7 {[%emt 0:00:02]} 39. Rd7 {[%emt 0:00:12][%csl LRb7,LRf7]} f6 {[%emt 0:01:02]} 40. Rc7 {[%emt 0:03:54]} Bd2 {[%emt 0:01:25]} 41. Rxb7 {[%emt 0:00:51]} Re5 {[%emt 0:00:18]} 42. Bd4 {[%emt 0:01:36]} Rf5 {[%emt 0:00:19]} (42... Re6 $16) 43. Rd7 $1 $18 {[%emt 0:03:10] g4 would now be deadly.} Bxa5 $2 {[%emt 0:01:16] [#]} (43... Kg6 {is a better defense.} 44. Bxf6 Kxf6) 44. g4 $1 {[%emt 0:00:21]} Rf4 {[%emt 0:00:25] [#]} 45. Kg3 {[%emt 0:00:02]} Bc7 {[%emt 0:00:06]} (45... Rxd4 $142 46. Rxd4 Be1) 46. Bxf6 {[%emt 0:01:32] White is clearly winning.} ({Worse is} 46. Rxc7 Rxd4 47. Rc6 Rd3+ 48. Kf4 a5 $11) 46... Kg8 {[%emt 0:01:00]} (46... Rxf6+ $142 47. Rxc7 Kg8) 47. Rxg7+ {[%emt 0:00:08]} Kf8 {[%emt 0:00:30]} 48. Rxc7 {[%emt 0:00:05] Weighted Error Value: White=0.10 (very precise) /Black=0.26 (precise) .  Mistake:       	White=2     	Black=6      Inaccurate:     	White=1     	Black=3      OK:         	White=16    	Black=9      Best:        	White=7     	Black=5      Strong:       	White=2     	Black=1} 1-0

[Event "10th Floripa Open 2024"]
[Site "Florianopolis"]
[Date "2024.01.28"]
[Round "9.7"]
[White "Perez Gormaz, Matias"]
[Black "De Carvalho, Jose Jorge"]
[Result "1-0"]
[ECO "B31"]
[WhiteElo "2388"]
[BlackElo "2119"]
[Annotator "TA"]
[PlyCount "35"]
[EventDate "2024.01.10"]
[EventType "swiss"]
[EventCountry "BRA"]
[SourceTitle "playchess.com"]
[Source "ChessBase"]
[SourceQuality "1"]
[TimeControl "5400+30"]

{[%evp 10,35,21,33,19,-5,49,43,58,44,102,45,43,18,346,324,352,329,483,491,716,617,598,590,29992,693,29993,29994]} 1. e4 {[%emt 0:00:06]} c5 {[%emt 0:00:07]} 2. Nf3 {[%emt 0:00:10]} Nc6 {[%emt 1:31:23]} 3. Bb5 {[%emt 0:01:16]} g6 {[%emt 0:00:00]} 4. O-O {[%emt 0:01:13]} Bg7 {[%emt 0:00:00]} 5. c3 {[%emt 0:00:24]} e5 {[%emt 0:00:00] [#]} 6. d4 $1 {[%emt 0:00:41]} exd4 {[%emt 0:00:00]} 7. Bf4 {[%emt 0:00:28][%cal Bc1f4,Bf4d6,Bd6e7][%mdl 32]} Nge7 {[%emt 0:00:00]} (7... a6 $11 8. Bc4 d6) 8. Bd6 $14 {[%emt 0:01:59]} Qb6 {[%emt 0:00:00] White is slightly better.} 9. Na3 {[%emt 0:11:31] Hoping for Bd3.} a6 {[%emt 0:00:00]} ({Better is} 9... Nd8 $14 10. Bg3 O-O) 10. Bxc6 {[%emt 0:03:50]} ({White should try} 10. Ba4 $16) 10... Qxc6 {[%emt 0:00:00]} 11. Bxe7 {[%emt 0:02:45]} dxc3 $2 {[%emt 0:00:00][%mdl 8192] A mistake that costs the game.} (11... Kxe7 $11 {and Black has nothing to worry.} 12. cxd4 b5) 12. Bd6 $18 {[%emt 0:02:10] aiming for Nc4.} cxb2 {[%emt 0:00:00]} 13. Rb1 {[%emt 0:00:08] Nc4 would now be deadly.} c4 {[%emt 0:00:00]} (13... b5 {might work better.} 14. e5 Bb7 15. Rxb2 Bf8) 14. e5 {[%emt 0:25:04]} ({But not} 14. Ne5 Bxe5 15. Bxe5 O-O 16. Bxb2 (16. Rxb2 b5 $18) 16... Qxe4 $18) 14... c3 {[%emt 0:00:00]} (14... Bf8 $142 15. Nd4 (15. Rxb2 c3 $18) 15... Qd5) 15. Nd4 {[%emt 0:00:42][%cal Bf3d4,Bd4f5,Bf5g7][%mdl 32]} Qd5 {[%emt 0:00:00] [#]} 16. Nf5 $1 {[%emt 0:00:21][%mdl 512]} Qc6 {[%emt 0:00:00]} (16... Qxd1 17. Nxg7+) 17. Nxg7+ {[%emt 0:00:28]} Kd8 {[%emt 0:00:00]} 18. Qd4 {[%emt 0:02:20] Weighted Error Value: White=0.31/Black=1.30.  Loses game:     	---       	Black=1      Mistake:       	White=1     	Black=4      Inaccurate:     	---       	Black=1      OK:         	White=4     	Black=1      Best:        	White=2     	---} 1-0

[Event "10th Floripa Open 2024"]
[Site "Florianopolis"]
[Date "2024.01.28"]
[Round "9.8"]
[White "Perdomo, Leandro"]
[Black "Ribeiro, Matheus Mendes Domin"]
[Result "1-0"]
[ECO "D32"]
[WhiteElo "2382"]
[BlackElo "2130"]
[Annotator "TA"]
[PlyCount "97"]
[EventDate "2024.01.10"]
[EventType "swiss"]
[EventCountry "BRA"]
[SourceTitle "playchess.com"]
[Source "ChessBase"]
[SourceQuality "1"]
[TimeControl "5400+30"]

{[%evp 12,97,22,49,50,54,53,34,35,13,85,66,83,82,72,70,78,81,85,79,88,61,63,43,85,77,81,81,71,41,33,0,90,110,112,112,161,161,468,466,418,454,609,585,606,604,616,587,474,418,399,337,371,372,362,246,245,245,245,245,245,245,245,245,245,245,245,245,401,245,401,238,760,735,1176,1083,2170,1993,29966,6199,29989,29990,29990,29991,29991,29992,29992,29993]} 1. d4 {[%emt 0:00:03]} d5 {[%emt 0:08:27]} 2. c4 {[%emt 0:00:34]} e6 {[%emt 0:00:27]} 3. Nc3 {[%emt 0:00:02]} c5 {[%emt 0:00:09]} 4. cxd5 {[%emt 0:00:29]} exd5 {[%emt 0:00:12]} 5. Nf3 {[%emt 0:00:04]} Nc6 {[%emt 0:00:44]} 6. dxc5 {[%emt 0:01:01]} d4 {[%emt 0:01:32]} 7. Na4 {[%emt 0:00:08]} Bxc5 {[%emt 0:00:25]} 8. Nxc5 {[%emt 0:00:04]} Qa5+ {[%emt 0:00:04]} 9. Bd2 {[%emt 0:00:22]} Qxc5 {[%emt 0:00:19] White is slightly better.} 10. b4 {[%emt 0:01:42][%cal Bb2b4,Bb4b5][%mdl 32]} Qe7 {[%emt 0:10:43]} (10... Qf5 $11) 11. Qa4 $16 {[%emt 0:21:34][%cal Ob4b5] And now b5! would win.} Nf6 {[%emt 0:18:07]} 12. b5 $1 {[%emt 0:07:00]} Ne5 {[%emt 0:15:36]} 13. Qxd4 {[%emt 0:00:28]} Nxf3+ {[%emt 0:00:46]} 14. gxf3 {[%emt 0:00:02]} O-O {[%emt 0:00:09]} 15. Bb4 {[%emt 0:15:51]} Qd8 {[%emt 0:02:10]} 16. Qb2 {[%emt 0:11:52] White has more active pieces. The black rooks are passive.} (16. Qxd8 {simplifies} Rxd8 17. Be7 Re8 18. Bxf6 gxf6 19. f4) 16... Re8 {[%emt 0:03:46]} 17. Rg1 {[%emt 0:00:50]} Nh5 $1 {[%emt 0:07:53]} 18. Rd1 {[%emt 0:13:43][%cal Ba1d1,Bd1d4,Bd4d5][%mdl 32]} Qh4 {[%emt 0:01:51][%cal Oc8f5]} 19. Rd4 {[%emt 0:02:36]} Qxh2 {[%emt 0:04:50]} 20. Rg2 {[%emt 0:04:13]} Qh1 {[%emt 0:01:14]} 21. Rd5 $40 {[%emt 0:09:27][%cal Od5h5][%mdl 128] White mounts an attack.} f6 {[%emt 0:08:43]} (21... g6 $1 $11 22. Qd4 f6 (22... Be6 $2 23. Bc3 $18)) 22. Bd6 $1 {[%emt 0:00:03] White stays focused until the end.} Be6 {[%emt 0:00:54] [#]} 23. Rd4 {[%emt 0:03:37]} (23. Rh2 Qxh2 24. Bxh2 Bxd5 $14) 23... Bh3 {[%emt 0:03:56] [#]} (23... Bf7 $16) 24. Rh4 $1 $18 {[%emt 0:00:05]} (24. Qb3+ Kh8 25. Rh4 Rac8 $19) 24... Bxg2 {[%emt 0:00:03]} (24... Rad8 25. Rxh3 Qxh3 26. Rxg7+ Kxg7 27. Bxh3 Rxd6) 25. Rxh1 {[%emt 0:00:04]} Bxh1 {[%emt 0:00:03]} 26. Bh3 {[%emt 0:02:28]} Rad8 {[%emt 0:01:47]} 27. Qb3+ {[%emt 0:02:30]} Kh8 {[%emt 0:00:07]} 28. Bc7 {[%emt 0:00:02]} Ra8 {[%emt 0:02:41]} 29. Bg4 {[%emt 0:01:05]} g6 {[%emt 0:02:05]} 30. Kf1 {[%emt 0:00:03]} Ng7 {[%emt 0:00:43]} 31. Qb2 {[%emt 0:02:39]} ({Much less strong is} 31. Qf7 f5 32. Bh3 g5 $18) 31... f5 {[%emt 0:01:57]} 32. Bh3 {[%emt 0:01:02]} Re7 {[%emt 0:01:38]} 33. Be5 {[%emt 0:00:30]} Rae8 {[%emt 0:01:47]} 34. Bxg7+ {[%emt 0:00:09]} Rxg7 {[%emt 0:00:03]} 35. Kg1 {[%emt 0:00:15]} Bxf3 {[%emt 0:00:15]} 36. exf3 {[%emt 0:00:03]} h6 {[%emt 0:00:52]} 37. Bf1 {[%emt 0:00:51]} Kh7 {[%emt 0:00:24]} 38. Bc4 {[%emt 0:00:38]} b6 {[%emt 0:00:33]} 39. Qf6 {[%emt 0:00:33]} Ree7 $2 {[%emt 0:00:11]} (39... Rb8 40. Bd5 Rc8) 40. Be6 {[%emt 0:00:57] aiming for Kf1.} Rc7 $2 {[%emt 0:00:26]} (40... Re8 41. Kh2 Ree7) 41. Qd8 {[%emt 0:00:29][%cal Oe6g8] Bg8+! is the strong threat.} Rb7 $2 {[%emt 0:01:19]} (41... Rc1+ 42. Kg2 Re1) 42. Kg2 {[%emt 0:00:33]} h5 {[%emt 0:00:58]} 43. f4 {[%emt 0:00:07][%cal Bf3f4,Bf4g5][%mdl 32]} Rbe7 {[%emt 0:00:10] [#]} 44. Bg8+ $1 {[%emt 0:00:22][%mdl 512]} Kh6 {[%emt 0:00:06]} (44... Rxg8 45. Qxe7+) 45. Kh3 {[%emt 0:00:51]} (45. Kg3 $142 h4+ 46. Kxh4 (46. Kh3 g5 $18) 46... Rh7 47. Qf8+ (47. Bxh7 Rxh7 48. Kg3 Kg7 $18) 47... Rhg7 48. Qf6 Rxg8 49. Qxe7 Rc8 50. Qxa7 (50. Qg5+ Kg7 $18)) 45... g5 {[%emt 0:00:03]} 46. Qd6+ {[%emt 0:00:15] White mates.} Rg6 {[%emt 0:00:06]} 47. fxg5+ {[%emt 0:00:33]} Kg7 {[%emt 0:00:15]} 48. Qxe7+ {[%emt 0:00:01]} Kxg8 {[%emt 0:00:04]} 49. Kh4 {[%emt 0:00:14] Weighted Error Value: White=0.14 (very precise) /Black=0.57.  Mistake:       	---       	Black=7      Inaccurate:     	White=3     	Black=2      OK:         	White=17    	Black=14     Best:        	White=2     	Black=5      Strong:       	White=3     	Black=1} 1-0